bitfinex/quotes_SOLUSD_20250922
["timestamp","ask_amount","ask_price","bid_price","bid_amount"]
[1758518701244,0.15,231.99,231.98,37.47071644]
[1758518701639,0.82,231.99,231.98,37.47071644]
[1758518702738,0.82,231.99,231.98,33.16]
[1758518703056,0.82,231.99,231.91,15.09206157]
[1758518703259,0.67,231.98,231.92,33.16]
[1758518703446,0.67,231.97,231.92,33.16]
[1758518703648,0.67,231.96,231.92,33.16]
[1758518703951,0.67,231.95,231.92,33.16]
[1758518704258,0.67,231.95,231.93,4.31164575]
[1758518704436,0.15,231.99,231.93,4.31164575]
[1758518704641,0.67,231.98,231.93,4.31164575]
[1758518704847,0.67,231.97,231.94,33.16]
[1758518705036,0.67,231.96,231.94,33.16]
[1758518705249,0.67,231.95,231.94,33.16]
[1758518705448,0.67,231.95,231.88,23.64192414]
[1758518705649,0.67,231.94,231.89,33.16]
[1758518705856,0.67,231.93,231.89,33.16]
[1758518706047,0.67,231.92,231.9,33.16]
[1758518706250,0.67,231.94,231.92,4.31183166]
[1758518706450,0.67,231.94,231.93,33.16]
[1758518706839,0.67,231.97,231.93,33.16]
[1758518707047,0.67,231.96,231.93,33.16]
[1758518707358,0.67,231.98,231.94,33.16]
[1758518708263,0.15,231.99,231.94,33.16]
[1758518708560,0.67,231.98,231.95,4.31127398]
[1758518708759,0.67,231.97,231.96,33.16]
[1758518710739,0.67,231.97,231.96,37.47108811]
[1758518711147,0.15,231.99,231.96,48.9588084]
[1758518711361,0.15,231.99,231.97,0.71]
[1758518711566,0.15,231.99,231.98,0.71]
[1758518711935,0.15,231.99,231.98,31.91]
[1758518712136,0.15,231.99,231.98,65.07]
[1758518712858,0.15,231.99,231.98,36.22071644]
[1758518713051,0.92,232.07,231.98,80.15750754]
[1758518713253,0.92,232.07,231.99,0.71]
[1758518713449,0.2,232.07,232.0,33.16]
[1758518713653,0.2,232.07,232.01,0.71]
[1758518713868,0.92,232.07,232.02,33.16]
[1758518714046,0.72,232.06,232.02,33.16]
[1758518714247,0.72,232.06,232.02,33.87]
[1758518714846,0.2,232.07,232.03,4.30978752]
[1758518715056,0.92,232.07,232.04,33.16]
[1758518716273,0.2,232.07,232.04,33.87]
[1758518716878,0.2,232.07,232.06,4.30923037]
[1758518717371,0.2,232.07,232.06,5.01923037]
[1758518717750,0.2,232.07,232.06,38.17923037]
[1758518718448,1e-08,232.07,232.06,38.17923037]
[1758518720080,1e-08,232.07,232.06,5.01923037]
[1758518720267,1e-08,232.07,232.06,38.17923037]
[1758518723458,1e-08,232.07,232.06,51.25056105]
[1758518726170,1e-08,232.07,232.06,18.09056105]
[1758518726375,1e-08,232.07,232.06,51.25056105]
[1758518736188,1e-08,232.07,232.06,18.09056105]
[1758518736569,1e-08,232.07,232.06,51.23056105]
[1758518737582,1e-08,232.07,232.06,51.20056105]
[1758518738986,1e-08,232.08,232.06,51.20056105]
[1758518739175,1e-08,232.08,232.07,0.68]
[1758518739567,1e-08,232.09,232.08,31.2]
[1758518739773,1e-08,232.1,232.08,65.4508859]
[1758518739981,0.2,232.21,232.09,0.68]
[1758518740289,0.7,232.16,232.13,31.2]
[1758518740476,0.9,232.15,232.14,33.14]
[1758518741188,0.9,232.15,232.07,4.30904468]
[1758518741391,0.7,232.14,232.08,33.14]
[1758518741571,0.7,232.13,232.08,33.14]
[1758518741772,0.7,232.12,232.08,33.14]
[1758518741988,0.7,232.11,232.08,33.14]
[1758518742292,0.2,232.15,232.08,33.14]
[1758518742293,0.7,232.1,232.08,33.14]
[1758518743079,0.7,232.1,232.09,35.50867335]
[1758518743384,0.7,232.1,232.09,68.64867335]
[1758518744394,0.7,232.12,232.09,79.42035674]
[1758518745689,0.2,232.15,232.09,79.42035674]
[1758518745891,0.7,232.11,232.09,79.42035674]
[1758518746774,0.7,232.1,232.09,79.42035674]
[1758518747179,0.7,232.13,232.09,79.42035674]
[1758518747380,0.7,232.12,232.09,79.42035674]
[1758518749101,0.7,232.14,232.09,80.10035674]
[1758518749285,0.7,232.13,232.09,80.10035674]
[1758518749592,0.7,232.12,232.09,79.42035674]
[1758518751598,0.9,232.15,232.09,79.42035674]
[1758518751791,0.7,232.14,232.09,79.42035674]
[1758518752000,0.7,232.13,232.09,79.42035674]
[1758518752700,0.7,232.12,232.09,79.42035674]
[1758518753806,0.7,232.14,232.09,80.10035674]
[1758518754004,0.7,232.14,232.09,79.42035674]
[1758518754193,0.7,232.14,232.1,0.68]
[1758518754397,0.7,232.14,232.11,33.14]
[1758518754903,0.2,232.15,232.11,33.14]
[1758518755214,0.2,232.15,232.12,4.30811649]
[1758518755215,0.7,232.14,232.12,4.30811649]
[1758518755386,0.7,232.14,232.13,33.14]
[1758518755591,0.2,232.15,232.13,33.14]
[1758518756011,0.7,232.14,232.13,33.14]
[1758518757103,0.7,232.14,232.13,37.4479309]
[1758518757802,0.7,232.14,232.13,33.14]
[1758518758604,0.7,232.14,232.06,13.07133068]
[1758518758605,0.7,232.14,232.08,0.7]
[1758518758919,0.7,232.14,232.09,33.14]
[1758518759101,0.68,232.13,232.06,4.30923037]
[1758518759298,0.2,232.15,232.03,42.67442145]
[1758518759299,0.68,232.12,232.03,42.67442145]
[1758518759499,0.68,232.11,232.04,33.14]
[1758518759696,0.68,232.1,232.04,33.14]
[1758518759912,0.68,232.09,232.04,33.14]
[1758518760212,0.68,232.08,232.04,33.14]
[1758518760385,0.68,232.07,232.04,37.44960179]
[1758518761496,31.4,232.15,232.02,13.07375163]
[1758518761497,0.68,232.06,232.02,33.14]
[1758518761717,0.68,232.05,231.99,0.7]
[1758518762025,0.68,232.05,231.96,13.25564122]
[1758518762188,0.68,232.04,231.97,33.14]
[1758518762389,0.68,232.03,231.98,0.7]
[1758518762585,0.68,232.05,231.99,0.7]
[1758518762891,0.68,232.05,232.0,33.14]
[1758518763092,0.68,232.06,232.01,0.7]
[1758518763386,31.2,232.08,232.02,37.44997327]
[1758518763584,0.68,232.07,232.02,37.44997327]
[1758518763804,0.68,232.06,232.02,33.14]
[1758518763989,0.68,232.06,231.92,56.49853034]
[1758518763990,0.68,232.05,231.88,21.56244426]
[1758518764194,0.68,232.04,231.89,33.84]
[1758518764401,0.68,232.03,231.92,31.2]
[1758518764605,0.68,232.02,231.93,33.84]
[1758518764813,0.68,232.02,231.94,0.7]
[1758518765027,44.16092282,232.05,231.94,0.7]
[1758518765198,0.68,232.05,231.94,0.7]
[1758518765401,31.88,232.05,231.95,15.08945893]
[1758518765601,0.68,232.04,231.96,33.84]
[1758518765810,0.68,232.03,231.96,33.84]
[1758518766333,0.68,232.03,231.97,0.7]
[1758518766504,0.68,232.03,231.98,4.31071644]
[1758518766818,0.68,232.03,231.98,5.01071644]
[1758518767430,0.68,232.02,231.98,5.01071644]
[1758518767606,0.68,232.02,231.98,4.31071644]
[1758518767807,0.68,232.01,231.98,4.31071644]
[1758518768006,0.68,232.0,231.98,4.31071644]
[1758518768512,0.68,232.02,231.98,4.31071644]
[1758518768712,0.68,232.01,231.98,4.31071644]
[1758518771115,31.2,232.05,231.98,4.31071644]
[1758518771315,0.67,232.03,231.98,4.97071644]
[1758518772725,0.67,232.03,232.0,4.31034482]
[1758518773403,0.67,232.02,231.97,11.43725567]
[1758518774520,0.67,232.02,231.98,0.66]
[1758518774831,0.67,232.04,231.99,0.66]
[1758518775020,0.67,232.03,231.99,0.66]
[1758518776324,0.67,232.03,232.0,4.31034482]
[1758518776534,0.67,232.02,232.0,4.31034482]
[1758518778015,0.67,232.01,231.98,4.31054038]
[1758518778207,35.50941614,232.05,231.96,4.3109549]
[1758518778208,0.67,232.0,231.96,4.3109549]
[1758518778407,0.67,231.99,231.95,4.31127398]
[1758518778603,0.67,231.99,231.95,4.97127398]
[1758518778807,35.50976364,232.04,231.94,4.31134937]
[1758518778808,0.67,231.98,231.94,4.31134937]
[1758518779109,31.2,232.03,231.94,4.31134937]
[1758518779433,0.67,232.0,231.94,4.31134937]
[1758518779609,0.67,231.99,231.94,4.31134937]
[1758518779810,31.2,232.03,231.94,4.31134937]
[1758518779811,0.67,231.98,231.94,4.97134937]
[1758518780010,0.67,232.0,231.95,0.66]
[1758518780227,0.67,231.99,231.95,0.66]
[1758518780526,0.67,232.01,231.94,15.08999902]
[1758518780828,0.67,232.01,231.96,0.66]
[1758518781527,0.67,232.01,231.97,0.66]
[1758518781713,31.87,232.04,231.97,0.66]
[1758518781909,31.87,232.04,231.98,4.31071644]
[1758518782212,0.67,232.03,231.98,4.31071644]
[1758518782419,0.67,232.05,231.99,31.86]
[1758518783924,0.67,232.05,232.0,4.31034482]
[1758518784130,0.67,232.04,232.0,4.31034482]
[1758518784424,0.67,232.03,231.95,11.43814926]
[1758518784636,0.67,232.02,231.92,10.77953989]
[1758518784817,0.67,232.01,231.93,0.66]
[1758518785228,0.67,232.01,231.93,4.97164575]
[1758518785420,0.67,232.0,231.91,4.97186218]
[1758518785613,0.67,231.99,231.91,4.97186218]
[1758518785814,64.34,232.02,231.91,4.97186218]
[1758518785815,0.67,231.98,231.91,4.97186218]
[1758518786111,0.67,231.97,231.91,4.97186218]
[1758518786727,31.2,232.0,231.92,0.66]
[1758518786913,0.68,231.99,231.92,0.66]
[1758518788017,0.68,231.99,231.92,4.97172552]
[1758518788018,4.9906152,231.99,231.92,4.97172552]
[1758518788223,0.68,231.98,231.92,4.31172552]
[1758518788533,0.68,231.97,231.92,4.31172552]
[1758518788732,0.68,231.96,231.92,5.00172552]
[1758518788927,0.68,231.96,231.92,4.31172552]
[1758518789130,0.68,231.96,231.92,0.69]
[1758518789327,0.68,231.98,231.93,0.69]
[1758518789631,0.68,231.97,231.93,0.69]
[1758518789839,38.13030988,232.01,231.94,0.69]
[1758518790132,0.68,231.99,231.92,0.69]
[1758518791434,4.99057939,231.99,231.92,5.00170164]
[1758518791621,4.31057939,231.99,231.92,5.00170164]
[1758518791823,0.68,231.98,231.92,5.00170164]
[1758518792537,0.68,232.0,231.93,0.69]
[1758518793641,0.68,232.0,231.94,4.31145986]
[1758518794136,0.68,232.0,231.94,5.00145986]
[1758518798334,0.68,232.0,231.92,10.77957916]
[1758518798535,0.68,232.0,231.95,0.69]
[1758518798738,0.68,232.0,231.96,0.69]
[1758518800823,0.68,231.99,231.94,0.69]
[1758518801025,0.68,231.99,231.95,0.69]
[1758518802052,0.68,231.98,231.92,0.69]
[1758518802232,0.68,231.98,231.91,5.00201759]
[1758518802442,0.68,231.97,231.91,5.00201759]
[1758518803256,0.68,231.97,231.92,0.69]
[1758518804065,0.68,231.97,231.91,4.31201759]
[1758518804254,0.68,231.96,231.87,4.31276146]
[1758518804557,0.68,231.96,231.91,0.69]
[1758518804737,0.68,231.95,231.91,0.69]
[1758518804933,4.31094458,231.97,231.92,0.69]
[1758518805140,4.99094458,231.97,231.93,0.69]
[1758518805761,0.68,231.97,231.93,0.69]
[1758518806459,4.9909215,231.97,231.93,0.69]
[1758518806767,4.3109215,231.97,231.93,0.69]
[1758518806942,4.9909215,231.97,231.93,0.69]
[1758518807639,4.3109215,231.97,231.93,0.69]
[1758518807839,0.68,231.96,231.91,0.69]
[1758518808054,0.68,231.96,231.89,4.31226458]
[1758518808344,0.68,231.96,231.9,0.69]
[1758518809060,4.99112857,231.96,231.9,5.00205668]
[1758518809257,4.99112857,231.96,231.91,0.69]
[1758518809448,4.99112857,231.96,231.9,4.31205668]
[1758518809449,4.99112857,231.96,231.92,0.69]
[1758518809852,0.68,231.95,231.9,0.69]
[1758518810149,0.68,231.95,231.91,0.69]
[1758518810348,0.68,231.95,231.92,0.69]
[1758518810549,0.68,231.94,231.88,0.69]
[1758518811264,4.31164575,231.93,231.88,0.69]
[1758518811445,4.99164575,231.93,231.88,0.69]
[1758518812541,0.68,231.92,231.88,0.69]
[1758518815257,0.68,231.91,231.88,0.69]
[1758518815437,0.68,231.91,231.86,0.69]
[1758518815641,0.68,231.91,231.87,0.69]
[1758518817756,5.0317217,231.93,231.85,0.1]
[1758518817961,5.0317217,231.93,231.88,0.71]
[1758518818162,0.72,231.92,231.85,0.1]
[1758518818346,0.72,231.92,231.86,0.71]
[1758518818867,0.72,231.92,231.86,5.02294746]
[1758518819072,0.72,231.92,231.87,5.02275506]
[1758518819274,0.72,231.92,231.87,4.31275506]
[1758518819447,0.72,231.92,231.88,0.71]
[1758518819647,4.3117217,231.93,231.88,0.71]
[1758518819949,0.72,231.91,231.88,0.71]
[1758518820354,4.3117217,231.93,231.88,0.71]
[1758518820556,0.72,231.92,231.88,0.71]
[1758518820970,0.72,231.91,231.86,0.71]
[1758518821147,0.72,231.9,231.86,0.71]
[1758518821551,4.3117217,231.93,231.85,0.1]
[1758518821552,0.72,231.89,231.85,0.1]
[1758518821751,0.72,231.88,231.85,0.1]
[1758518822163,64.36,231.9,231.85,0.1]
[1758518822485,0.72,231.87,231.85,0.1]
[1758518822652,0.72,231.86,231.85,0.1]
[1758518827777,5.03294746,231.86,231.85,0.1]
[1758518828179,0.72,231.88,231.85,0.1]
[1758518828368,33.16,231.88,231.85,0.1]
[1758518828570,0.72,231.87,231.85,0.1]
[1758518828980,37.47262688,231.88,231.85,0.1]
[1758518829281,0.72,231.86,231.85,0.1]
[1758518830298,33.83,231.88,231.85,0.1]
[1758518830764,0.67,231.87,231.85,0.1]
[1758518832281,132.2,231.89,231.85,0.1]
[1758518832468,165.36,231.89,231.86,0.71]
[1758518832871,132.2,231.89,231.85,4.41309654]
[1758518833175,132.2,231.89,231.87,0.71]
[1758518833780,132.2,231.89,231.85,4.41309654]
[1758518834080,0.67,231.94,231.86,5.02294401]
[1758518834269,0.67,231.94,231.87,0.71]
[1758518834672,0.67,231.96,231.87,0.71]
[1758518834979,33.83,231.96,231.87,0.71]
[1758518835989,31.2,231.93,231.85,0.1]
[1758518836168,31.2,231.89,231.85,0.1]
[1758518836487,33.18,231.88,231.85,0.1]
[1758518836782,33.85,231.88,231.85,0.1]
[1758518838389,4.31276146,231.87,231.85,0.1]
[1758518839690,4.98294746,231.86,231.85,0.1]
[1758518842396,38.16294746,231.86,231.85,0.1]
[1758518848193,132.2,231.87,231.85,0.1]
[1758518848398,165.38,231.87,231.85,0.1]
[1758518850580,132.2,231.87,231.85,0.1]
[1758518850990,132.89,231.87,231.85,0.1]
[1758518851305,137.20281806,231.87,231.85,0.1]
[1758518851593,136.51281806,231.87,231.85,0.1]
[1758518851993,132.2,231.87,231.85,0.1]
[1758518852996,165.36,231.87,231.85,0.1]
[1758518854486,132.2,231.87,231.85,0.1]
[1758518854681,165.36,231.87,231.85,0.1]
[1758518854889,132.2,231.87,231.85,0.1]
[1758518855081,132.2,231.87,231.86,0.68]
[1758518855996,132.2,231.87,231.85,0.1]
[1758518856198,132.2,231.87,231.85,0.78]
[1758518860287,132.2,231.94,231.86,0.68]
[1758518860491,0.69,231.97,231.86,0.68]
[1758518860693,33.16,231.96,231.86,0.68]
[1758518861099,0.69,231.97,231.86,0.68]
[1758518861309,0.69,231.99,231.86,0.68]
[1758518861609,33.16,231.98,231.86,0.68]
[1758518862211,33.16,231.98,231.87,15.09466511]
[1758518862379,33.16,231.98,231.88,0.68]
[1758518863007,33.85,231.98,231.88,0.68]
[1758518863179,33.85,231.98,231.89,15.09336322]
[1758518863405,33.85,231.98,231.9,0.68]
[1758518864901,4.31039786,232.0,231.9,0.68]
[1758518864902,0.69,232.0,231.9,0.68]
[1758518865107,33.16,231.99,231.9,0.68]
[1758518865322,33.85,231.99,231.91,15.09206157]
[1758518865620,33.85,231.99,231.92,0.68]
[1758518866408,33.85,231.99,231.93,4.31164575]
[1758518867908,0.69,231.99,231.93,4.31164575]
[1758518868320,0.69,231.98,231.92,0.68]
[1758518869310,0.69,231.98,231.92,4.99179465]
[1758518869506,0.69,231.97,231.92,4.99179465]
[1758518869700,33.16,231.99,231.92,4.99179465]
[1758518869701,33.85,231.99,231.92,4.99179465]
[1758518869927,0.69,231.98,231.92,4.99179465]
[1758518870430,0.69,231.97,231.92,4.99179465]
[1758518870720,0.69,231.96,231.92,4.99179465]
[1758518872510,0.69,231.96,231.92,0.68]
[1758518872718,0.69,231.95,231.9,4.31204877]
[1758518873016,0.69,231.95,231.91,0.68]
[1758518873218,0.69,231.94,231.9,4.31204877]
[1758518873524,4.31073015,231.98,231.89,13.17748058]
[1758518873525,0.69,231.96,231.92,4.31183166]
[1758518873733,0.69,231.95,231.92,4.31183166]
[1758518875241,0.69,231.97,231.92,0.68]
[1758518875534,0.69,231.96,231.9,4.31220353]
[1758518875717,0.69,231.96,231.91,0.68]
[1758518875919,0.69,231.96,231.92,0.68]
[1758518877630,0.7,231.98,231.93,0.7]
[1758518877836,33.16,231.99,231.94,0.7]
[1758518878508,33.16,231.99,231.95,0.7]
[1758518878705,0.7,231.98,231.95,0.7]
[1758518879732,0.7,231.98,231.93,0.7]
[1758518879934,0.7,231.98,231.92,10.77957916]
[1758518879935,0.7,231.98,231.94,0.7]
[1758518880329,33.16,231.99,231.95,0.7]
[1758518880531,33.86,231.99,231.95,0.7]
[1758518880732,33.16,231.99,231.95,5.01116075]
[1758518880932,0.7,231.98,231.95,4.31116075]
[1758518881540,0.7,232.0,231.95,5.01116075]
[1758518881835,0.7,231.99,231.95,5.01116075]
[1758518882432,132.2,232.01,231.96,0.7]
[1758518882640,0.7,232.03,231.96,0.7]
[1758518885030,0.7,232.03,231.96,5.01107784]
[1758518885031,5.00979527,232.03,231.96,5.01107784]
[1758518885229,0.7,232.02,231.96,5.01107784]
[1758518886239,33.84,232.01,231.93,0.7]
[1758518887942,4.31034482,232.0,231.93,0.7]
[1758518888421,0.7,231.99,231.93,0.7]
[1758518888734,0.7,231.99,231.93,5.01149168]
[1758518889827,0.7,231.99,231.94,0.7]
[1758518890024,33.84,232.01,231.94,0.7]
[1758518890637,0.7,232.01,231.94,0.7]
[1758518890825,33.84,232.01,231.94,0.7]
[1758518891322,0.7,232.01,231.95,4.31127398]
[1758518891529,33.85,232.02,231.96,0.7]
[1758518891730,0.71,232.02,231.96,0.7]
[1758518892062,33.14,232.03,231.96,0.7]
[1758518892225,33.85,232.03,231.96,0.7]
[1758518892419,0.71,232.03,231.96,0.7]
[1758518892638,31.2,232.04,231.96,0.7]
[1758518892947,31.91,232.04,231.96,0.7]
[1758518893626,31.91,232.04,231.97,4.31090227]
[1758518894064,0.71,232.04,231.98,0.7]
[1758518894344,132.2,232.08,231.98,0.7]
[1758518894549,0.71,232.09,231.98,0.7]
[1758518894731,0.71,232.09,232.0,31.2]
[1758518894932,46.09700434,232.12,232.01,0.7]
[1758518895125,12.95700434,232.12,232.01,0.7]
[1758518895319,12.95700434,232.12,232.01,65.04]
[1758518895545,0.71,232.14,232.05,31.2]
[1758518895763,0.71,232.13,232.05,31.2]
[1758518895932,0.71,232.13,232.06,0.7]
[1758518896648,0.71,232.13,232.07,4.30904468]
[1758518896849,0.71,232.13,232.07,5.00904468]
[1758518897728,0.71,232.13,232.07,4.30904468]
[1758518897950,0.71,232.13,232.09,4.30867335]
[1758518898538,0.2,232.15,232.1,0.7]
[1758518899936,0.2,232.15,232.11,15.07905733]
[1758518900253,0.2,232.15,232.12,0.7]
[1758518900950,0.2,232.15,232.11,15.07905733]
[1758518901157,0.2,232.15,232.12,0.7]
[1758518901566,0.2,232.15,232.13,0.7]
[1758518901866,0.2,232.15,232.14,0.7]
[1758518902160,0.2,232.15,232.14,5.00774532]
[1758518902958,0.2,232.15,232.14,4.30774532]
[1758518903264,0.2,232.15,232.12,0.7]
[1758518903434,0.2,232.15,232.11,10.77075524]
[1758518903435,0.2,232.15,232.13,0.7]
[1758518903630,0.2,232.15,232.14,0.7]
[1758518903962,0.2,232.15,232.12,0.7]
[1758518904145,0.2,232.15,232.13,4.3079309]
[1758518904467,0.2,232.15,232.14,0.7]
[1758518913453,0.2,232.15,232.14,5.00774532]
[1758518913664,0.2,232.15,232.14,4.97774532]
[1758518914981,0.2,232.15,232.14,37.42774532]
[1758518915475,0.2,232.15,232.14,38.09774532]
[1758518930315,0.2,232.15,232.14,4.97774532]
[1758518930608,0.86,232.15,232.14,37.40774532]
[1758518931109,0.86,232.15,232.14,4.30774532]
[1758518931492,0.86,232.15,232.14,37.40774532]
[1758518932287,0.2,232.15,232.14,37.40774532]
[1758518933486,0.2,232.15,232.13,35.50793063]
[1758518933487,0.86,232.15,232.13,35.50793063]
[1758518933696,0.66,232.14,232.13,4.30793063]
[1758518934109,0.66,232.14,232.13,37.40793063]
[1758518934488,0.66,232.14,232.13,33.1]
[1758518935209,0.66,232.14,232.13,37.4079309]
[1758518935391,0.2,232.15,232.13,4.9779309]
[1758518935592,0.2,232.15,232.14,33.77]
[1758518936310,0.2,232.15,232.14,33.1]
[1758518936491,0.2,232.15,232.14,33.77]
[1758518937617,0.2,232.15,232.14,38.07774532]
[1758518939910,0.2,232.15,232.14,37.40774532]
[1758518940409,0.2,232.15,232.14,38.12774532]
[1758518943303,0.2,232.21,232.14,48.89710863]
[1758518943609,0.2,232.21,232.15,0.72]
[1758518943813,0.2,232.21,232.16,33.1]
[1758518944013,0.2,232.21,232.17,0.72]
[1758518944324,0.2,232.21,232.19,4.30681769]
[1758518944493,0.2,232.21,232.2,33.1]
[1758518945408,0.2,232.21,232.2,33.82]
[1758518945604,0.2,232.21,232.2,0.72]
[1758518945807,0.2,232.21,232.2,33.82]
[1758518946515,0.2,232.21,232.2,5.02663221]
[1758518946695,0.2,232.21,232.2,38.12663221]
[1758518949203,0.92,232.21,232.2,35.50663221]
[1758518949404,0.92,232.21,232.2,68.60663221]
[1758518949603,0.2,232.21,232.2,35.50663221]
[1758518949812,0.2,232.21,232.2,68.60663221]
[1758518950013,0.92,232.21,232.2,35.50663221]
[1758518950216,0.92,232.21,232.2,68.60663221]
[1758518950508,0.92,232.21,232.18,4.30685575]
[1758518950698,0.72,232.2,232.19,33.1]
[1758518951293,0.72,232.2,232.16,4.30724274]
[1758518951501,0.72,232.19,232.13,4.3079309]
[1758518951700,0.2,232.21,232.13,4.3079309]
[1758518951701,0.72,232.18,232.14,33.1]
[1758518951908,0.2,232.21,232.15,0.67]
[1758518952119,0.72,232.2,232.16,33.1]
[1758518952415,0.72,232.19,232.16,33.1]
[1758518952596,0.72,232.18,232.16,33.1]
[1758518953017,0.72,232.17,232.16,33.1]
[1758518953222,0.72,232.17,232.16,37.40737422]
[1758518953625,0.72,232.17,232.16,4.30737422]
[1758518953928,0.72,232.17,232.15,33.1]
[1758518954130,0.72,232.16,232.15,33.1]
[1758518955329,0.72,232.16,232.1,31.2]
[1758518955511,0.72,232.15,232.06,10.77268004]
[1758518955715,0.72,232.14,232.1,33.1]
[1758518955910,0.72,232.13,232.1,33.1]
[1758518956433,0.72,232.13,232.1,37.40840529]
[1758518956808,8.61367733,232.18,232.1,37.40840529]
[1758518957008,0.72,232.16,232.1,37.40840529]
[1758518957208,0.72,232.15,232.1,37.40840529]
[1758518957418,0.72,232.14,232.1,37.40840529]
[1758518957628,8.61367733,232.18,232.1,37.40840529]
[1758518957629,0.72,232.13,232.1,37.40840529]
[1758518958116,0.72,232.12,232.11,33.1]
[1758518958517,0.72,232.14,232.11,33.1]
[1758518958735,0.72,232.13,232.11,33.1]
[1758518959426,0.72,232.17,232.12,0.67]
[1758518959733,0.72,232.16,232.13,33.1]
[1758518959936,0.72,232.15,232.13,33.1]
[1758518960143,0.72,232.15,232.13,37.40775805]
[1758518960843,0.72,232.14,232.13,37.40775805]
[1758518961213,0.72,232.14,232.13,33.1]
[1758518961731,0.72,232.16,232.13,33.1]
[1758518963045,0.72,232.16,232.13,37.40789504]
[1758518964059,0.72,232.15,232.09,55.69756817]
[1758518964243,0.72,232.15,232.1,33.1]
[1758518964552,0.72,232.15,232.1,33.77]
[1758518964772,0.72,232.15,232.1,33.1]
[1758518964969,0.72,232.15,232.11,0.67]
[1758518965254,0.72,232.15,232.12,37.40811649]
[1758518965859,0.72,232.14,232.12,37.40811649]
[1758518966025,0.72,232.13,232.09,55.69756817]
[1758518966229,0.72,232.13,232.1,33.1]
[1758518966442,0.72,232.15,232.1,33.77]
[1758518966629,0.72,232.14,232.1,33.77]
[1758518966829,0.69,232.13,232.09,13.0561383]
[1758518967058,0.69,232.12,232.09,33.1]
[1758518967260,0.69,232.11,232.09,33.1]
[1758518967443,0.69,232.1,232.09,33.1]
[1758518967831,0.69,232.1,232.02,4.30997327]
[1758518968032,0.69,232.09,232.03,33.1]
[1758518968336,0.69,232.08,232.04,33.1]
[1758518968554,0.69,232.07,232.04,33.1]
[1758518969141,0.69,232.07,232.04,37.40953552]
[1758518971146,0.69,232.06,232.02,4.30982158]
[1758518971381,0.69,232.05,232.03,33.1]
[1758518971674,0.69,232.07,232.03,33.1]
[1758518971852,4.30849952,232.1,232.03,33.1]
[1758518972055,0.69,232.06,232.03,33.1]
[1758518972472,0.69,232.06,232.03,37.40976237]
[1758518972963,0.69,232.06,232.03,33.1]
[1758518973348,0.69,232.05,232.03,33.1]